bitfinex-derivatives/quotes_SOLF0:USTF0_20250803
["timestamp","ask_amount","ask_price","bid_price","bid_amount"]
[1754182149617,3.34,159.18,159.01,6.96970206]
[1754182149817,3.34,159.15,159.06,5.31143787]
[1754182150024,18.89,159.18,159.06,5.31143787]
[1754182150025,3.34,159.12,159.06,5.31143787]
[1754182150431,3.34,159.12,159.09,5.31143787]
[1754182150630,3.34,159.15,159.09,5.31143787]
[1754182151625,3.34,159.15,159.06,5.31143787]
[1754182152126,3.34,159.15,159.07,6.2878]
[1754182152431,3.34,159.15,159.06,5.31143787]
[1754182152628,25.89478291,159.19,159.09,5.31143787]
[1754182152629,3.34,159.13,159.09,5.31143787]
[1754182152828,3.34,159.17,159.12,5.31143787]
[1754182153026,3.34,159.16,159.12,11.59743787]
[1754182153225,3.34,159.17,159.15,5.31143787]
[1754182153828,3.34,159.19,159.15,5.31143787]
[1754182154133,3.34,159.17,159.15,5.31143787]
[1754182154332,10.34478291,159.2,159.15,5.31143787]
[1754182154533,3.34,159.19,159.15,5.31143787]
[1754182154734,3.34,159.17,159.15,5.31143787]
[1754182155934,13.28848291,159.19,159.15,5.31143787]
[1754182156140,10.34478291,159.18,159.15,11.59613787]
[1754182156323,3.34,159.17,159.15,5.31143787]
[1754182156633,13.28848291,159.19,159.15,5.31143787]
[1754182156634,3.34,159.19,159.15,5.31143787]
[1754182156825,3.34,159.19,159.11,5.31143787]
[1754182157131,3.34,159.19,159.1,5.31143787]
[1754182157336,3.34,159.19,159.01,6.96970206]
[1754182157732,3.34,159.19,159.1,5.31143787]
[1754182158733,6.2852,159.15,159.1,11.59833787]
[1754182159033,3.34,159.19,159.1,11.59833787]
[1754182159034,3.34,159.14,159.1,5.31143787]
[1754182159239,3.34,159.2,159.1,5.31143787]
[1754182159538,3.34,159.2,159.13,5.31143787]
[1754182159539,3.34,159.16,159.13,5.31143787]
[1754182159831,3.34,159.15,159.13,5.31143787]
[1754182160032,3.34,159.15,159.13,11.59713787]
[1754182160338,3.34,159.18,159.06,5.31143787]
[1754182160540,3.34,159.17,159.13,5.31143787]
[1754182160738,3.34,159.16,159.13,5.31143787]
[1754182161134,10.34478291,159.19,159.13,5.31143787]
[1754182161434,10.34478291,159.19,159.06,5.31143787]
[1754182161435,3.34,159.18,159.16,5.31143787]
[1754182161636,3.34,159.18,159.06,5.31143787]
[1754182161831,3.34,159.18,159.1,5.31143787]
[1754182162038,3.34,159.17,159.1,5.31143787]
[1754182162232,3.34,159.14,159.1,5.31143787]
[1754182162432,3.34,159.17,159.1,5.31143787]
[1754182163236,6.2854,159.14,159.1,5.31143787]
[1754182163435,3.34,159.13,159.1,5.31143787]
[1754182163635,3.34,159.12,159.1,5.31143787]
[1754182163840,3.34,159.14,159.11,6.2864]
[1754182164140,3.34,159.14,159.1,5.31143787]
[1754182164641,3.34,159.17,159.1,5.31143787]
[1754182165036,3.34,159.13,159.08,5.31143787]
[1754182165341,3.34,159.13,159.04,5.31143787]
[1754182166241,6.2873,159.09,159.04,11.60063787]
[1754182166441,3.34,159.13,159.04,5.31143787]
[1754182166839,22.21,159.13,159.01,5.31143787]
[1754182167038,3.34,159.12,159.01,5.31143787]
[1754182167535,3.34,159.12,159.01,11.60153787]
[1754182167741,3.34,159.11,159.01,11.60153787]
[1754182168838,3.34,159.08,159.01,5.31143787]
[1754182169038,3.34,159.08,159.04,5.31143787]
[1754182169239,3.34,159.07,159.04,5.31143787]
[1754182170146,3.34,159.06,159.04,5.31143787]
[1754182170345,3.34,159.1,159.04,5.31143787]
[1754182170546,3.34,159.09,159.07,5.31143787]
[1754182170746,3.34,159.1,159.04,5.31143787]
[1754182172052,7.00478291,159.1,159.04,5.31143787]
[1754182172253,3.34,159.1,159.04,5.31143787]
[1754182172446,10.34478291,159.1,159.04,5.31143787]
[1754182172748,3.34,159.1,159.04,5.31143787]
[1754182172942,10.34478291,159.11,159.07,5.31143787]
[1754182173142,3.34,159.11,159.07,5.31143787]
[1754182173342,3.34,159.13,159.09,6.2869]
[1754182173543,3.34,159.13,159.1,5.31143787]
[1754182174136,127.7,159.17,159.1,5.31143787]
[1754182174348,3.29,159.11,159.1,5.31143787]
[1754182174848,3.29,159.15,159.07,11.59943787]
[1754182175046,3.29,159.14,159.07,11.59943787]
[1754182175548,3.29,159.1,159.07,5.31143787]
[1754182175747,3.29,159.14,159.07,5.31143787]
[1754182176152,7.00478291,159.15,159.07,11.59943787]
[1754182176446,3.29,159.14,159.08,5.31143787]
[1754182176646,3.29,159.12,159.08,5.31143787]
[1754182176845,7.00478291,159.15,159.08,5.31143787]
[1754182177145,3.29,159.1,159.08,5.31143787]
[1754182177743,3.29,159.14,159.08,5.31143787]
[1754182177940,3.29,159.13,159.1,6.2866]
[1754182178145,3.29,159.13,159.11,5.31143787]
[1754182178637,3.29,159.16,159.11,5.31143787]
[1754182178837,3.29,159.13,159.11,5.31143787]
[1754182179242,3.29,159.15,159.11,5.31143787]
[1754182179447,3.29,159.14,159.11,5.31143787]
[1754182179651,3.29,159.17,159.11,5.31143787]
[1754182180447,3.29,159.19,159.14,5.31143787]
[1754182180647,3.29,159.17,159.14,5.31143787]
[1754182180950,3.29,159.17,159.14,11.59663787]
[1754182181946,7.00478291,159.2,159.16,6.2845]
[1754182181947,3.29,159.2,159.16,6.2845]
[1754182182149,3.29,159.22,159.17,5.31143787]
[1754182182341,6.2824,159.22,159.17,5.31143787]
[1754182182546,3.29,159.23,159.17,5.31143787]
[1754182183851,3.29,159.23,159.2,5.31143787]
[1754182184056,3.29,159.22,159.2,5.31143787]
[1754182184753,6.2814,159.24,159.2,5.31143787]
[1754182184952,3.29,159.21,159.2,5.31143787]
[1754182185554,3.29,159.23,159.2,11.59413787]
[1754182185755,3.29,159.26,159.2,5.31143787]
[1754182185955,3.29,159.23,159.2,5.31143787]
[1754182186158,3.29,159.22,159.2,5.31143787]
[1754182186349,3.29,159.21,159.2,5.31143787]
[1754182188254,3.29,159.21,159.1,549.92]
[1754182188456,3.29,159.26,159.17,5.31143787]
[1754182189259,3.29,159.22,159.17,11.59523787]
[1754182189452,3.29,159.22,159.17,5.31143787]
[1754182189653,3.29,159.25,159.17,5.31143787]
[1754182189848,6.2817,159.24,159.18,6.2834]
[1754182190049,3.29,159.22,159.2,5.31143787]
[1754182190255,3.29,159.21,159.2,5.31143787]
[1754182191157,3.29,159.21,159.1,549.92]
[1754182191158,3.29,159.21,159.17,5.31143787]
[1754182191358,3.29,159.21,159.1,549.92]
[1754182191561,3.29,159.21,159.17,5.31143787]
[1754182191752,31.65924803,159.27,159.17,5.31143787]
[1754182191753,12.78924803,159.27,159.17,5.31143787]
[1754182191958,3.29,159.21,159.18,6.2834]
[1754182192159,3.29,159.21,159.17,5.31143787]
[1754182192160,6.2829,159.21,159.17,5.31143787]
[1754182192359,3.29,159.2,159.17,5.31143787]
[1754182192958,3.29,159.18,159.17,5.31143787]
[1754182193557,3.29,159.23,159.17,5.31143787]
[1754182193861,12.78924803,159.27,159.2,5.31143787]
[1754182194066,3.29,159.21,159.2,5.31143787]
[1754182194962,3.29,159.21,159.17,5.31143787]
[1754182195362,7.00478291,159.26,159.1,549.92]
[1754182195667,3.29,159.2,159.17,5.31143787]
[1754182197376,3.29,159.19,159.17,5.31143787]
[1754182197666,3.29,159.18,159.17,5.31143787]
[1754182197866,18.87,159.26,159.17,11.59553787]
[1754182198068,3.29,159.18,159.17,5.31143787]
[1754182200768,3.29,159.18,159.13,5.31143787]
[1754182201567,3.29,159.18,159.1,5.31143787]
[1754182201866,3.29,159.15,159.04,127.14]
[1754182202066,3.29,159.15,159.08,5.31143787]
[1754182202571,3.29,159.18,159.08,5.31143787]
[1754182202768,3.29,159.18,159.11,5.31143787]
[1754182203467,3.29,159.18,159.04,127.14]
[1754182203666,3.29,159.18,159.1,5.31143787]
[1754182204676,3.33,159.12,159.1,5.31143787]
[1754182204967,3.33,159.12,159.07,5.31143787]
[1754182205876,6.2866,159.11,159.07,5.31143787]
[1754182206270,25.87478291,159.18,159.06,5.31143787]
[1754182206271,3.33,159.08,159.06,5.31143787]
[1754182206468,3.33,159.07,159.04,127.14]
[1754182206674,3.33,159.07,159.05,5.31143787]
[1754182207672,22.2,159.14,159.03,5.31143787]
[1754182207876,3.33,159.12,159.03,5.31143787]
[1754182208266,24.18143787,159.13,159.03,5.31143787]
[1754182208467,22.2,159.09,158.97,5.31143787]
[1754182208670,3.33,159.08,158.93,422.3]
[1754182208872,3.33,159.08,158.96,11.60373787]
[1754182209081,3.33,159.06,158.95,5.31143787]
[1754182209470,3.33,159.01,158.93,422.3]
[1754182209674,3.33,159.06,158.97,5.31143787]
[1754182209874,3.33,159.06,159.0,5.31143787]
[1754182210681,3.33,159.14,159.03,5.31143787]
[1754182210872,3.33,159.14,159.06,5.31143787]
[1754182211474,3.33,159.13,159.09,5.31143787]
[1754182211673,422.3,159.18,159.09,5.31143787]
[1754182211674,3.33,159.12,159.09,5.31143787]
[1754182211879,3.33,159.15,159.09,5.31143787]
[1754182212578,3.33,159.15,159.12,5.31143787]
[1754182212984,3.33,159.19,159.16,6.2843]
[1754182213277,3.33,159.19,159.17,5.31143787]
[1754182214872,3.33,159.26,159.17,5.31143787]
[1754182215276,3.33,159.26,159.17,11.59533787]
[1754182215883,3.33,159.26,159.2,5.31143787]
[1754182217285,3.33,159.26,159.06,127.02]
[1754182217478,3.33,159.26,159.19,5.31143787]
[1754182217978,3.33,159.23,159.19,5.31143787]
[1754182218182,3.33,159.26,159.19,5.31143787]
[1754182218376,6.281,159.25,159.19,5.31143787]
[1754182218781,3.33,159.26,159.22,5.31143787]
[1754182218983,3.33,159.24,159.22,5.31143787]
[1754182219576,5.78446512,159.27,159.22,5.31143787]
[1754182219782,5.78446512,159.27,159.26,5.31143787]
[1754182220185,9.11446512,159.27,159.26,5.31143787]
[1754182220678,3.33,159.26,159.23,5.31143787]
[1754182220880,5.78446512,159.27,159.23,5.31143787]
[1754182221080,3.33,159.24,159.23,5.31143787]
[1754182222792,3.33,159.26,159.23,5.31143787]
[1754182223186,3.33,159.25,159.23,5.31143787]
[1754182223890,3.33,159.25,159.24,5.31143787]
[1754182224085,3.33,159.25,159.13,126.86]
[1754182224086,3.33,159.25,159.21,5.31143787]
[1754182224281,3.33,159.22,159.21,5.31143787]
[1754182224885,6.2826,159.21,159.18,5.31143787]
[1754182225090,3.33,159.26,159.18,5.31143787]
[1754182225485,3.33,159.25,159.21,5.31143787]
[1754182225686,3.33,159.25,159.23,5.31143787]
[1754182225884,5.78446512,159.27,159.23,5.31143787]
[1754182226089,3.33,159.26,159.23,5.31143787]
[1754182227690,9.6106,159.26,159.23,5.31143787]
[1754182228290,3.33,159.26,159.23,5.31143787]
[1754182229391,5.78446512,159.27,159.23,5.31143787]
[1754182229591,3.33,159.25,159.23,5.31143787]
[1754182230189,3.33,159.25,159.23,11.59313787]
[1754182230496,5.78446512,159.27,159.23,5.31143787]
[1754182230685,15.39466512,159.27,159.26,5.31143787]
[1754182230989,9.11446512,159.27,159.26,5.31143787]
[1754182232485,9.11446512,159.27,159.17,5.31143787]
[1754182232486,9.11446512,159.27,159.23,5.31143787]
[1754182232693,3.33,159.26,159.23,5.31143787]
[1754182233094,3.33,159.24,159.23,5.31143787]
[1754182233292,3.33,159.24,159.2,5.31143787]
[1754182233492,9.6114,159.24,159.2,5.31143787]
[1754182233682,3.33,159.24,159.2,5.31143787]
[1754182233888,3.2,159.23,159.2,5.31143787]
[1754182234192,3.2,159.22,159.2,5.31143787]
[1754182234393,3.2,159.22,159.11,126.62]
[1754182234590,3.2,159.22,159.21,5.31143787]
[1754182236987,9.4824,159.22,159.18,5.31143787]
[1754182237290,18.87,159.26,159.18,5.31143787]
[1754182237493,3.2,159.25,159.18,5.31143787]
[1754182237690,6.2828,159.21,159.18,5.31143787]
[1754182237993,3.2,159.19,159.18,5.31143787]
[1754182239493,3.2,159.25,159.18,5.31143787]
[1754182239692,3.2,159.23,159.22,5.31143787]
[1754182241404,3.2,159.24,159.22,5.31143787]
[1754182242501,3.2,159.26,159.22,5.31143787]
[1754182242692,3.2,159.26,159.25,5.31143787]
[1754182243196,8.98446512,159.27,159.25,5.31143787]
[1754182243895,3.2,159.3,159.25,5.31143787]
[1754182244091,3.2,159.35,159.28,5.31143787]
[1754182244399,3.2,159.35,159.31,5.31143787]
[1754182245091,3.2,159.34,159.25,5.31143787]
[1754182245397,18.87,159.34,159.23,5.31143787]
[1754182245599,3.2,159.32,159.23,5.31143787]
[1754182245796,3.2,159.31,159.21,5.31143787]
[1754182246095,3.2,159.22,159.21,5.31143787]
[1754182247300,3.2,159.22,159.21,11.59393787]
[1754182247600,3.2,159.31,159.21,5.31143787]
[1754182247897,3.2,159.31,159.24,5.31143787]
[1754182248292,6.2794,159.29,159.24,11.59243787]
[1754182248500,3.2,159.27,159.24,5.31143787]
[1754182248702,3.2,159.29,159.24,5.31143787]
[1754182248892,3.2,159.28,159.24,5.31143787]
[1754182249499,3.2,159.33,159.24,5.31143787]
[1754182249900,6.2795,159.29,159.24,11.59253787]
[1754182250104,3.2,159.33,159.24,5.31143787]
[1754182250493,3.2,159.33,159.24,11.59263787]
[1754182250800,3.2,159.33,159.24,5.31143787]
[1754182251004,3.2,159.33,159.25,6.2809]
[1754182251202,3.2,159.33,159.24,5.31143787]
[1754182251603,6.2797,159.29,159.24,11.59253787]
[1754182251796,145.27,159.34,159.24,5.31143787]
[1754182251797,3.2,159.28,159.24,5.31143787]
[1754182252503,3.2,159.32,159.24,5.31143787]
[1754182252800,6.2791,159.3,159.25,6.2808]
[1754182252997,3.2,159.29,159.27,5.31143787]
[1754182253402,3.2,159.28,159.27,5.31143787]
[1754182254500,25.87478291,159.35,159.28,6.2797]
[1754182254698,3.2,159.34,159.3,5.31143787]
[1754182254900,3.2,159.34,159.17,145.05359532]
[1754182255093,95.9749323,159.36,159.29,5.31143787]
[1754182255300,3.2,159.31,159.27,5.31143787]
[1754182255698,3.2,159.33,159.17,145.05359532]
[1754182256008,3.2,159.33,159.28,5.31143787]
[1754182257406,3.2,159.29,159.25,5.31143787]
[1754182257600,3.2,159.29,159.23,5.31143787]
[1754182258907,3.2,159.28,159.24,6.281]
[1754182259108,3.2,159.28,159.26,5.31143787]
[1754182260297,3.2,159.27,159.26,5.31143787]
[1754182261208,3.2,159.3,159.26,5.31143787]
[1754182261409,3.2,159.28,159.26,5.31143787]
[1754182261909,6.2782,159.32,159.27,6.2798]
[1754182262096,3.2,159.31,159.27,6.2798]
[1754182262300,3.2,159.32,159.29,5.31143787]
[1754182262502,6.2779,159.33,159.29,11.59053787]
[1754182262805,3.2,159.32,159.29,5.31143787]
[1754182263001,6.2781,159.33,159.29,5.31143787]
[1754182263206,3.2,159.31,159.29,5.31143787]
[1754182263511,3.2,159.3,159.29,5.31143787]
[1754182264407,18.87,159.39,159.29,5.31143787]
[1754182264408,3.46,159.32,159.29,5.31143787]
[1754182264806,7.00478291,159.37,159.29,5.31143787]
[1754182265010,3.46,159.35,159.33,5.31143787]
[1754182265204,7.00478291,159.38,159.32,5.31143787]
[1754182265205,3.46,159.37,159.32,5.31143787]
[1754182265511,3.46,159.35,159.32,5.31143787]
[1754182265704,3.46,159.34,159.32,5.31143787]
[1754182266007,3.46,159.33,159.29,11.59043787]
[1754182266207,3.46,159.34,159.29,5.31143787]
[1754182266507,13.28178291,159.36,159.31,5.31143787]
[1754182266710,3.46,159.34,159.31,5.31143787]
[1754182267006,3.46,159.36,159.31,5.31143787]
[1754182267207,3.46,159.38,159.31,5.31143787]
[1754182267410,3.46,159.37,159.31,5.31143787]
[1754182267607,9.7363,159.37,159.32,6.2779]
[1754182267807,3.46,159.35,159.32,6.2779]
[1754182268317,3.46,159.4,159.34,5.31143787]
[1754182268610,3.46,159.39,159.37,5.31143787]
[1754182268798,3.46,159.38,159.37,5.31143787]
[1754182270209,3.46,159.38,159.31,5.31143787]
[1754182270511,3.46,159.32,159.28,5.31143787]
[1754182270712,12.31622078,159.39,159.28,5.31143787]
[1754182270912,3.46,159.32,159.28,5.31143787]
[1754182271111,3.46,159.38,159.31,5.31143787]
[1754182271605,6.2779,159.33,159.28,11.59103787]
[1754182271811,3.46,159.32,159.23,125.98]
[1754182272010,3.46,159.31,159.28,5.31143787]
[1754182272213,18.87,159.39,159.28,5.31143787]
[1754182272214,7.00478291,159.39,159.28,5.31143787]
[1754182272412,3.46,159.38,159.32,5.31143787]
[1754182273004,3.46,159.38,159.33,6.2778]
[1754182273209,3.46,159.38,159.32,5.31143787]
[1754182273610,9.7359,159.38,159.34,6.2773]
[1754182273805,3.46,159.38,159.23,125.98]
[1754182274011,3.46,159.38,159.31,5.31143787]
[1754182274811,3.46,159.36,159.31,5.31143787]
[1754182275214,3.46,159.35,159.31,11.58993787]
[1754182275414,3.46,159.35,159.31,5.31143787]
[1754182276015,6.2771,159.35,159.31,5.31143787]
[1754182276215,3.46,159.33,159.31,5.31143787]
[1754182277821,3.46,159.32,159.31,5.31143787]
[1754182278816,7.00478291,159.42,159.32,3.45]
[1754182279017,7.00478291,159.43,159.34,8.76143787]
[1754182279215,6.2755,159.39,159.34,8.76143787]
[1754182279422,7.00478291,159.44,159.34,8.76143787]
[1754182279619,7.00478291,159.43,159.34,5.31143787]
[1754182280323,7.00478291,159.42,159.32,3.45]
[1754182280519,6.2754,159.39,159.32,3.45]
[1754182280720,7.00478291,159.42,159.32,3.45]
[1754182280917,3.46,159.41,159.32,3.45]
[1754182281118,3.46,159.41,159.34,5.31143787]
[1754182281323,3.46,159.41,159.34,8.76143787]
[1754182281515,3.46,159.41,159.34,5.31143787]
[1754182282115,6.2762,159.38,159.34,5.31143787]
[1754182282319,3.46,159.36,159.34,5.31143787]
[1754182282522,3.46,159.39,159.35,3.45]
[1754182282723,3.46,159.39,159.37,15.03753787]
[1754182283119,3.46,159.39,159.37,8.76143787]
[1754182283427,3.46,159.4,159.37,5.31143787]
[1754182283722,3.46,159.4,159.34,8.76143787]
[1754182284117,9.7351,159.4,159.35,6.277]
[1754182284323,3.46,159.4,159.37,8.76143787]
[1754182284524,3.46,159.44,159.29,3.45]
[1754182284724,3.46,159.44,159.35,11.58843787]
[1754182284925,3.46,159.44,159.35,15.03843787]
[1754182285120,3.46,159.44,159.35,8.76143787]
[1754182285326,7.00478291,159.42,159.33,5.31143787]
[1754182285527,3.46,159.41,159.33,5.31143787]
[1754182285724,3.46,159.41,159.33,8.76143787]
[1754182285928,3.46,159.41,159.36,5.31143787]
[1754182286232,3.46,159.42,159.36,5.31143787]
[1754182286634,3.46,159.39,159.37,3.45]
[1754182287529,6.2747,159.41,159.38,3.45]
[1754182287737,6.2747,159.41,159.39,3.45]
[1754182287927,9.7347,159.41,159.39,3.45]
[1754182288127,6.2747,159.41,159.36,11.58773787]
[1754182288333,3.46,159.39,159.37,3.45]
[1754182288930,3.46,159.39,159.37,9.7259]
[1754182289238,3.46,159.44,159.37,3.45]
[1754182289541,3.46,159.44,159.41,3.45]
[1754182289840,3.46,159.46,159.4,5.31143787]
[1754182290138,6.2738,159.44,159.4,5.31143787]
[1754182290534,3.46,159.42,159.4,5.31143787]
[1754182291133,7.00478291,159.47,159.4,5.31143787]
[1754182291337,10.23231214,159.58,159.46,5.31143787]
[1754182291636,3.46,159.55,159.52,11.58163787]
[1754182291848,3.46,159.54,159.52,5.31143787]
[1754182292136,7.00000304,159.53,159.49,5.31143787]
[1754182292337,3.46,159.52,159.49,5.31143787]
[1754182292737,3.46,159.54,159.49,5.31143787]
[1754182292937,3.46,159.51,159.49,5.31143787]
[1754182293243,7.00000304,159.52,159.49,5.31143787]
[1754182293436,3.46,159.53,159.49,5.31143787]
[1754182293639,6.2684,159.57,159.52,5.31143787]
[1754182293940,3.32,159.53,159.52,5.31143787]
[1754182294144,10.32000304,159.54,159.52,5.31143787]
[1754182294336,3.32,159.53,159.41,421.76]
[1754182294536,3.32,159.51,159.5,5.31143787]
[1754182294940,7.00000304,159.51,159.5,5.31143787]
[1754182295240,3.32,159.53,159.5,5.31143787]
[1754182295441,10.32000304,159.51,159.5,5.31143787]
[1754182295941,3.32,159.5,159.45,5.31143787]
[1754182296142,3.32,159.48,159.45,5.31143787]
[1754182296335,3.32,159.47,159.45,5.31143787]
[1754182296841,3.32,159.46,159.43,5.31143787]
[1754182297033,3.32,159.45,159.41,5.31143787]
[1754182297231,10.32000304,159.43,159.41,5.31143787]
[1754182297437,7.00000304,159.43,159.41,5.31143787]
[1754182297637,3.32,159.44,159.41,5.31143787]
[1754182298148,3.32,159.46,159.41,5.31143787]
[1754182298346,10.32000304,159.45,159.44,5.31143787]
[1754182299044,7.00000304,159.45,159.41,5.31143787]
[1754182299241,3.32,159.42,159.41,5.31143787]
[1754182299441,10.32000304,159.42,159.41,5.31143787]
[1754182299642,10.32000304,159.42,159.35,125.52]
[1754182299848,10.32000304,159.41,159.38,5.31143787]
[1754182300043,3.32,159.39,159.37,5.31143787]
[1754182300342,3.32,159.38,159.37,11.58763787]
[1754182300545,3.32,159.39,159.37,5.31143787]
[1754182300744,10.32000304,159.4,159.37,5.31143787]
[1754182301037,3.32,159.39,159.37,11.58763787]
[1754182301235,18.87,159.5,159.37,5.31143787]
[1754182301437,10.32000304,159.44,159.43,5.31143787]
[1754182301746,3.32,159.44,159.43,5.31143787]
[1754182301945,3.32,159.43,159.4,5.31143787]
[1754182302148,3.32,159.41,159.4,5.31143787]
[1754182302445,10.32000304,159.41,159.4,5.31143787]
[1754182302644,3.32,159.41,159.4,5.31143787]
[1754182303042,18.87,159.48,159.38,5.31143787]
[1754182303346,3.32,159.39,159.36,5.31143787]
[1754182303546,3.32,159.38,159.36,5.31143787]
[1754182303947,3.32,159.38,159.36,11.58773787]
[1754182304648,3.32,159.38,159.37,6.2762]
[1754182304845,3.32,159.38,159.36,5.31143787]
[1754182305837,3.32,159.4,159.29,421.52]
[1754182306042,3.32,159.36,159.35,5.31143787]
[1754182306848,3.32,159.37,159.35,5.31143787]
[1754182307045,7.00000304,159.38,159.35,5.31143787]
[1754182307442,18.87,159.47,159.35,5.31143787]
[1754182307647,7.00000304,159.38,159.29,421.52]
[1754182307948,3.32,159.35,159.29,421.52]
[1754182308154,3.32,159.35,159.34,6.2774]
[1754182308350,3.32,159.37,159.34,6.2774]
[1754182308558,3.32,159.37,159.29,421.52]
[1754182308938,3.32,159.39,159.29,421.52]
[1754182309146,10.32000304,159.39,159.36,5.31143787]
[1754182309447,3.32,159.47,159.36,5.31143787]
[1754182309646,7.00000304,159.39,159.36,5.31143787]
[1754182309840,3.32,159.37,159.36,5.31143787]
[1754182310051,10.32000304,159.39,159.36,5.31143787]
[1754182310451,3.32,159.38,159.37,6.2762]
[1754182311051,3.32,159.42,159.36,5.31143787]
[1754182311249,3.32,159.41,159.4,5.31143787]
[1754182311646,3.32,159.41,159.4,11.58623787]
[1754182312248,3.32,159.43,159.42,6.274]
[1754182312548,3.32,159.43,159.4,5.31143787]
[1754182312549,7.00000304,159.45,159.4,5.31143787]
[1754182312748,10.32000304,159.45,159.44,5.31143787]
[1754182313855,7.00000304,159.45,159.44,11.58493787]
[1754182314349,3.32,159.48,159.44,5.31143787]
[1754182314554,10.32000304,159.5,159.47,5.31143787]
[1754182314856,3.32,159.49,159.48,6.2719]
[1754182317047,3.32,159.48,159.41,125.36]
[1754182317249,3.32,159.46,159.45,5.31143787]
[1754182317556,445.84143787,159.57,159.46,6.2724]
[1754182317751,7.00000304,159.47,159.46,6.2724]
[1754182318055,7.00000304,159.47,159.45,5.31143787]
[1754182318251,7.00000304,159.46,159.43,5.31143787]
[1754182318556,7.00000304,159.44,159.43,5.31143787]
[1754182318758,6.2728,159.46,159.43,5.31143787]
[1754182319056,7.00000304,159.44,159.43,5.31143787]
[1754182319256,7.00000304,159.44,159.4,5.31143787]
[1754182319459,149.48143787,159.51,159.4,5.31143787]
[1754182319460,10.32000304,159.41,159.4,5.31143787]
[1754182319957,3.32,159.4,159.34,5.31143787]
[1754182320156,3.32,159.34,159.33,5.31143787]
[1754182320749,3.32,159.43,159.34,3.21]
[1754182320954,7.00000304,159.37,159.35,3.21]
[1754182321454,7.00000304,159.37,159.36,8.52143787]
[1754182321657,3.32,159.39,159.36,8.52143787]
[1754182321858,10.32000304,159.38,159.36,8.52143787]
[1754182322058,7.00000304,159.38,159.36,5.31143787]
[1754182322355,3.32,159.37,159.36,5.31143787]
[1754182322555,7.00000304,159.38,159.36,5.31143787]
[1754182322853,3.32,159.36,159.32,3.21]
[1754182323052,7.00000304,159.35,159.3,3.21]
[1754182323258,7.00000304,159.35,159.33,5.31143787]
[1754182323455,3.32,159.42,159.33,5.31143787]
[1754182323751,18.87,159.43,159.33,5.31143787]
[1754182323752,7.00000304,159.35,159.33,5.31143787]
[1754182323956,10.23000304,159.35,159.33,5.31143787]
[1754182324152,18.87,159.43,159.33,5.31143787]
[1754182324356,10.23000304,159.35,159.33,5.31143787]
[1754182324753,3.23,159.35,159.33,5.31143787]
[1754182324947,7.00000304,159.34,159.3,5.31143787]
[1754182325154,3.23,159.32,159.3,5.31143787]
[1754182326059,3.23,159.31,159.3,11.59033787]
[1754182326255,6.2769,159.36,159.3,11.59033787]
[1754182326256,7.00000304,159.33,159.3,11.59033787]
[1754182326456,3.23,159.32,159.3,11.59033787]
[1754182326656,3.23,159.31,159.3,11.59033787]
[1754182326852,3.23,159.32,159.31,6.2786]
[1754182327053,3.23,159.39,159.31,3.33]
[1754182327256,3.23,159.39,159.31,5.31143787]
[1754182327860,3.23,159.39,159.31,8.64143787]
[1754182328062,6.2746,159.41,159.35,6.2767]
[1754182328259,3.23,159.4,159.34,5.31143787]
[1754182328458,3.23,159.45,159.38,3.33]
[1754182328656,3.23,159.45,159.42,8.64143787]
[1754182328857,95.08665187,159.52,159.42,8.64143787]
[1754182329159,3.23,159.44,159.43,6.2738]
[1754182329864,3.23,159.46,159.43,3.33]
[1754182330060,125.22,159.54,159.46,3.33]
[1754182330261,3.23,159.53,159.48,5.31143787]
[1754182330563,3.23,159.54,159.51,5.31143787]